[Event "11th LCC FIDE Open 2019"]
[Site "London"]
[Date "2019.12.04"]
[Round "7.12"]
[White "Cumming, Rhys"]
[Black "Clarke, Brandon Gi"]
[Result "1-0"]
[ECO "A65"]
[WhiteElo "2284"]
[BlackElo "2431"]
[Annotator "NA"]
[PlyCount "89"]
[EventDate "2019.11.29"]
[EventType "swiss"]
[EventCountry "ENG"]
[SourceTitle "playchess.com"]
[Source "ChessBase"]
[SourceQuality "1"]
[TimeControl "40/5400+30:1800+30"]

1. d4 {[%emt 0:02:21]} Nf6 {[%emt 0:00:00]} 2. c4 {[%emt 0:00:11]} g6 {[%emt 0:00:00]} 3. Nc3 {[%emt 0:00:07]} Bg7 {[%emt 0:00:09]} 4. e4 {[%emt 0:00:06]} d6 {[%emt 0:00:04]} 5. f3 {[%emt 0:00:12]} O-O {[%emt 0:00:10]} 6. Bg5 {[%emt 0:00:06]} c5 {[%emt 0:00:49]} 7. d5 {[%emt 0:00:09]} h6 {[%emt 0:01:15]} 8. Be3 {[%emt 0:00:06]} e6 {[%emt 0:00:19]} 9. Qd2 {[%emt 0:00:37]} exd5 {[%emt 0:00:17]} 10. cxd5 {[%emt 0:00:05]} Re8 {[%emt 0:05:32]} 11. Nge2 {[%emt 0:01:26]} Nbd7 {[%emt 0:02:03]} 12. Nc1 {[%emt 0:01:33]} a6 {[%emt 0:02:57]} 13. Be2 {[%emt 0:00:46]} b5 {[%emt 0:10:30]} 14. O-O {[%emt 0:03:14]} Kh7 {[%emt 0:01:09]} 15. Nd3 {[%emt 0:02:32]} Nb6 {[%emt 0:01:10]} 16. Nf2 {[%emt 0:05:41]} b4 {[%emt 0:01:44]} 17. Ncd1 {[%emt 0:02:59]} a5 {[%emt 0:00:36]} 18. a3 {[%emt 0:05:26]} Bb7 {[%emt 0:03:26]} 19. Bb5 {[%emt 0:27:40]} Re7 {[%emt 0:01:00]} 20. axb4 {[%emt 0:06:13]} axb4 {[%emt 0:00:23]} 21. Rxa8 {[%emt 0:00:07]} Qxa8 {[%emt 0:01:25]} 22. Bf4 {[%emt 0:01:01]} Qd8 {[%emt 0:10:14]} 23. h3 {[%emt 0:04:26]} Ne8 {[%emt 0:07:28]} 24. Ne3 {[%emt 0:02:30]} Nc7 {[%emt 0:07:53]} 25. Bd3 {[%emt 0:01:01]} Rd7 {[%emt 0:10:31]} 26. Nc4 {[%emt 0:13:34]} Nxc4 {[%emt 0:07:00]} 27. Bxc4 {[%emt 0:00:01]} Qf6 {[%emt 0:01:21]} 28. Ra1 {[%emt 0:05:38]} g5 {[%emt 0:06:45]} 29. Bg3 {[%emt 0:01:17]} Qxb2 {[%emt 0:08:09]} 30. Qxb2 {[%emt 0:00:01]} Bxb2 {[%emt 0:00:01]} 31. Ra7 {[%emt 0:00:09]} Bc8 {[%emt 0:05:59]} 32. e5 {[%emt 0:10:50]} Bd4 {[%emt 0:04:51]} 33. exd6 {[%emt 0:01:06]} Nb5 {[%emt 0:00:05]} 34. Ra8 {[%emt 0:00:49]} Na7 {[%emt 0:01:09]} 35. Bd3+ {[%emt 0:01:56]} Kg7 {[%emt 0:00:00]} 36. Bf5 {[%emt 0:00:05]} c4 {[%emt 0:01:04]} 37. Rxc8 {[%emt 0:01:36]} Nxc8 {[%emt 0:00:25]} 38. Bxd7 {[%emt 0:00:01]} b3 {[%emt 0:00:35]} 39. Bxc8 {[%emt 0:01:14]} c3 {[%emt 0:00:05]} 40. d7 {[%emt 0:00:31]} c2 {[%emt 0:00:55]} 41. d8=Q {[%emt 0:03:01]} c1=Q+ {[%emt 0:07:56]} 42. Kh2 {[%emt 0:00:10]} b2 {[%emt 0:00:26]} 43. Bf5 {[%emt 0:01:17]} Qe1 {[%emt 0:00:02]} 44. Qb8 {[%emt 0:03:50]} h5 {[%emt 0:00:16]} 45. Be4 {[%emt 0:02:35]} 1-0

[Event "11th LCC FIDE Open 2019"]
[Site "London"]
[Date "2019.12.04"]
[Round "7.14"]
[White "McDonald, Neil"]
[Black "Czerw, Dawid"]
[Result "1-0"]
[ECO "B48"]
[WhiteElo "2412"]
[BlackElo "2255"]
[Annotator "NA"]
[PlyCount "45"]
[EventDate "2019.11.29"]
[EventType "swiss"]
[EventCountry "ENG"]
[SourceTitle "playchess.com"]
[Source "ChessBase"]
[SourceQuality "1"]
[TimeControl "40/5400+30:1800+30"]

1. e4 {[%emt 0:00:00]} c5 {[%emt 0:00:00]} 2. Nf3 {[%emt 0:00:00]} e6 {[%emt 0:00:00]} 3. d4 {[%emt 0:00:00]} cxd4 {[%emt 0:00:00]} 4. Nxd4 {[%emt 0:00:00]} Nc6 {[%emt 0:00:00]} 5. Nc3 {[%emt 0:00:00]} Qc7 {[%emt 0:00:00]} 6. Be3 {[%emt 0:00:42]} a6 {[%emt 0:00:10]} 7. Qd2 {[%emt 0:00:07]} Nf6 {[%emt 0:00:07]} 8. O-O-O {[%emt 0:00:13]} Bb4 {[%emt 0:01:24]} 9. f3 {[%emt 0:00:21]} O-O {[%emt 0:00:46]} 10. a3 {[%emt 0:09:57]} Be7 {[%emt 0:03:40]} 11. g4 {[%emt 0:00:41]} b5 {[%emt 0:02:23]} 12. g5 {[%emt 0:01:26]} Nh5 {[%emt 0:02:31]} 13. Be2 {[%emt 0:09:09]} Ne5 {[%emt 0:25:24]} 14. Nf5 {[%emt 0:12:03]} Bc5 {[%emt 0:17:08]} 15. Bxc5 {[%emt 0:08:42]} Qxc5 {[%emt 0:00:18]} 16. f4 {[%emt 0:01:36]} Nc4 {[%emt 0:15:09]} 17. Bxc4 {[%emt 0:00:39]} Qxc4 {[%emt 0:01:33]} 18. Ng3 {[%emt 0:04:20]} g6 {[%emt 0:00:50]} 19. Nxh5 {[%emt 0:00:39]} gxh5 {[%emt 0:00:02]} 20. f5 {[%emt 0:00:56]} Bb7 {[%emt 0:04:22]} 21. g6 {[%emt 0:02:36]} hxg6 {[%emt 0:07:22]} 22. Qh6 {[%emt 0:13:51]} exf5 {[%emt 0:00:34]} 23. exf5 {[%emt 0:01:06]} 1-0

[Event "11th LCC FIDE Open 2019"]
[Site "London"]
[Date "2019.12.04"]
[Round "7.15"]
[White "Blackburn, Jonathan L B"]
[Black "Taylor, Adam C"]
[Result "1/2-1/2"]
[ECO "D86"]
[WhiteElo "2240"]
[BlackElo "2371"]
[Annotator "NA"]
[PlyCount "65"]
[EventDate "2019.11.29"]
[EventType "swiss"]
[EventCountry "ENG"]
[SourceTitle "playchess.com"]
[Source "ChessBase"]
[SourceQuality "1"]
[TimeControl "40/5400+30:1800+30"]

1. d4 {[%emt 0:00:54]} Nf6 {[%emt 0:00:00]} 2. c4 {[%emt 0:00:06]} g6 {[%emt 0:00:00]} 3. Nc3 {[%emt 0:01:07]} d5 {[%emt 0:00:00]} 4. cxd5 {[%emt 0:00:07]} Nxd5 {[%emt 0:00:00]} 5. e4 {[%emt 0:00:11]} Nxc3 {[%emt 0:00:00]} 6. bxc3 {[%emt 0:00:02]} Bg7 {[%emt 0:00:00]} 7. Bc4 {[%emt 0:00:18]} c5 {[%emt 0:00:00]} 8. Ne2 {[%emt 0:02:52]} O-O {[%emt 0:00:40]} 9. Be3 {[%emt 0:00:12]} cxd4 {[%emt 0:08:19]} 10. cxd4 {[%emt 0:00:29]} Qa5+ {[%emt 0:00:03]} 11. Qd2 {[%emt 0:06:32]} Nc6 {[%emt 0:00:03]} 12. Rd1 {[%emt 0:04:41]} Rd8 {[%emt 0:00:37]} 13. O-O {[%emt 0:01:27]} b6 {[%emt 0:00:56]} 14. Qc2 {[%emt 0:12:59]} Bb7 {[%emt 0:01:52]} 15. Qb3 {[%emt 0:02:05]} e6 {[%emt 0:01:36]} 16. d5 {[%emt 0:09:30]} exd5 {[%emt 0:00:34]} 17. Bxd5 {[%emt 0:03:28]} Rd7 {[%emt 0:04:46]} 18. h3 {[%emt 0:13:22]} Qb4 {[%emt 0:02:55]} 19. Qc2 {[%emt 0:08:41]} Rc8 {[%emt 0:01:13]} 20. Rb1 {[%emt 0:01:54]} Qe7 {[%emt 0:01:59]} 21. Qa4 {[%emt 0:00:58]} Na5 {[%emt 0:01:59]} 22. Nf4 {[%emt 0:00:59]} Rdc7 {[%emt 0:15:29]} 23. Bxb7 {[%emt 0:03:50]} Rc4 {[%emt 0:00:12]} 24. Nd5 {[%emt 0:01:07]} Qd6 {[%emt 0:03:15]} 25. Bf4 {[%emt 0:01:00]} Qd8 {[%emt 0:15:41]} 26. Rb4 {[%emt 0:05:13]} Rxb4 {[%emt 0:01:24]} 27. Qxb4 {[%emt 0:00:08]} Bf8 {[%emt 0:00:31]} 28. Qd2 {[%emt 0:02:30]} Nxb7 {[%emt 0:00:26]} 29. Be5 {[%emt 0:04:42]} Rc6 {[%emt 0:04:57]} 30. Nf6+ {[%emt 0:05:31]} Kh8 {[%emt 0:00:02]} 31. Ne8+ {[%emt 0:01:27]} Kg8 {[%emt 0:00:13]} 32. Nf6+ {[%emt 0:00:40]} Kh8 {[%emt 0:00:01]} 33. Ne8+ {[%emt 0:01:57]} 1/2-1/2

[Event "11th LCC FIDE Open 2019"]
[Site "London"]
[Date "2019.12.04"]
[Round "7.16"]
[White "Beinoras, Mindaugas"]
[Black "Bukojemski, Adam"]
[Result "1/2-1/2"]
[ECO "A36"]
[WhiteElo "2350"]
[BlackElo "2211"]
[Annotator "NA"]
[PlyCount "76"]
[EventDate "2019.11.29"]
[EventType "swiss"]
[EventCountry "ENG"]
[SourceTitle "playchess.com"]
[Source "ChessBase"]
[SourceQuality "1"]
[TimeControl "40/5400+30:1800+30"]

1. c4 {[%emt 0:00:00]} Nf6 {[%emt 0:00:00]} 2. Nc3 {[%emt 0:00:08]} g6 {[%emt 0:00:00]} 3. g3 {[%emt 0:01:43]} Bg7 {[%emt 0:01:09]} 4. Bg2 {[%emt 0:00:21]} c5 {[%emt 0:00:47]} 5. e4 {[%emt 0:06:58]} Nc6 {[%emt 0:00:12]} 6. Nge2 {[%emt 0:00:41]} d6 {[%emt 0:01:37]} 7. O-O {[%emt 0:00:24]} h5 {[%emt 0:01:40]} 8. h3 {[%emt 0:00:44]} e5 {[%emt 0:01:45]} 9. d3 {[%emt 0:05:39]} Be6 {[%emt 0:08:09]} 10. f4 {[%emt 0:02:50]} Qd7 {[%emt 0:02:03]} 11. fxe5 {[%emt 0:01:30]} Nxe5 {[%emt 0:07:57]} 12. Nf4 {[%emt 0:00:35]} O-O {[%emt 0:00:20]} 13. Rb1 {[%emt 0:03:50]} a6 {[%emt 0:03:50]} 14. a4 {[%emt 0:04:29]} Rab8 {[%emt 0:06:21]} 15. Be3 {[%emt 0:04:48]} Kh7 {[%emt 0:04:16]} 16. Kh1 {[%emt 0:04:44]} Ne8 {[%emt 0:05:33]} 17. Qd2 {[%emt 0:05:09]} Nc7 {[%emt 0:00:36]} 18. b4 {[%emt 0:00:52]} b5 {[%emt 0:10:31]} 19. axb5 {[%emt 0:20:03]} axb5 {[%emt 0:01:44]} 20. bxc5 {[%emt 0:00:40]} dxc5 {[%emt 0:02:45]} 21. Bxc5 {[%emt 0:02:23]} Rfd8 {[%emt 0:03:44]} 22. Ncd5 {[%emt 0:00:58]} bxc4 {[%emt 0:01:31]} 23. Bb6 {[%emt 0:02:05]} c3 {[%emt 0:03:29]} 24. Qe2 {[%emt 0:07:13]} Bxd5 {[%emt 0:07:20]} 25. Nxd5 {[%emt 0:00:48]} Nxd5 {[%emt 0:02:06]} 26. Bxd8 {[%emt 0:00:41]} Nb4 {[%emt 0:00:20]} 27. Ba5 {[%emt 0:06:56]} Nexd3 {[%emt 0:00:51]} 28. Bxb4 {[%emt 0:01:09]} Rxb4 {[%emt 0:02:09]} 29. Rxb4 {[%emt 0:10:26]} Nxb4 {[%emt 0:00:01]} 30. Qc4 {[%emt 0:00:08]} Qd4 {[%emt 0:08:00]} 31. Qxf7 {[%emt 0:01:13]} Nd3 {[%emt 0:01:41]} 32. Qc7 {[%emt 0:01:23]} h4 {[%emt 0:01:20]} 33. e5 {[%emt 0:02:09]} Kh6 {[%emt 0:08:19]} 34. gxh4 {[%emt 0:01:56]} Nf2+ {[%emt 0:02:50]} 35. Rxf2 {[%emt 0:00:33]} Qxf2 {[%emt 0:00:03]} 36. Qxc3 {[%emt 0:00:10]} Qf4 {[%emt 0:00:15]} 37. Qf3 {[%emt 0:00:24]} Bxe5 {[%emt 0:00:08]} 38. Qxf4+ {[%emt 0:00:05]} Bxf4 {[%emt 0:00:02]} 1/2-1/2

[Event "11th LCC FIDE Open 2019"]
[Site "London"]
[Date "2019.12.04"]
[Round "7.17"]
[White "Russell, Christopher"]
[Black "Paterek, Michal"]
[Result "1/2-1/2"]
[ECO "B11"]
[WhiteElo "2190"]
[BlackElo "2317"]
[Annotator "NA"]
[PlyCount "32"]
[EventDate "2019.11.29"]
[EventType "swiss"]
[EventCountry "ENG"]
[SourceTitle "playchess.com"]
[Source "ChessBase"]
[SourceQuality "1"]
[TimeControl "40/5400+30:1800+30"]

1. e4 {[%emt 0:00:00]} c6 {[%emt 0:03:00]} 2. Nc3 {[%emt 0:00:25]} d5 {[%emt 0:00:12]} 3. Nf3 {[%emt 0:00:07]} Bg4 {[%emt 0:00:57]} 4. h3 {[%emt 0:00:10]} Bxf3 {[%emt 0:00:07]} 5. Qxf3 {[%emt 0:00:05]} Nf6 {[%emt 0:00:26]} 6. d4 {[%emt 0:00:45]} dxe4 {[%emt 0:02:53]} 7. Qe3 {[%emt 0:00:24]} g6 {[%emt 0:03:59]} 8. Nxe4 {[%emt 0:14:45]} Bg7 {[%emt 0:01:41]} 9. Nxf6+ {[%emt 0:04:25]} Bxf6 {[%emt 0:00:07]} 10. c3 {[%emt 0:00:06]} Qd5 {[%emt 0:10:16]} 11. Be2 {[%emt 0:04:06]} Nd7 {[%emt 0:00:06]} 12. O-O {[%emt 0:01:30]} O-O {[%emt 0:00:09]} 13. Bf3 {[%emt 0:08:04]} Qd6 {[%emt 0:00:40]} 14. Rd1 {[%emt 0:01:07]} Rad8 {[%emt 0:00:54]} 15. Qf4 {[%emt 0:09:29]} Rfe8 {[%emt 0:12:14]} 16. Qxd6 {[%emt 0:02:35]} exd6 {[%emt 0:00:12]} 1/2-1/2

[Event "11th LCC FIDE Open 2019"]
[Site "London"]
[Date "2019.12.04"]
[Round "7.19"]
[White "Villiers, Thomas"]
[Black "Risting, Eivind Olav"]
[Result "1/2-1/2"]
[ECO "A21"]
[WhiteElo "2145"]
[BlackElo "2298"]
[Annotator "NA"]
[PlyCount "25"]
[EventDate "2019.11.29"]
[EventType "swiss"]
[EventCountry "ENG"]
[SourceTitle "playchess.com"]
[Source "ChessBase"]
[SourceQuality "1"]
[TimeControl "40/5400+30:1800+30"]

1. c4 {[%emt 0:00:00]} e5 {[%emt 0:00:00]} 2. Nc3 {[%emt 0:00:03]} Bb4 {[%emt 0:00:30]} 3. Qc2 {[%emt 0:01:42]} Nf6 {[%emt 0:01:32]} 4. a3 {[%emt 0:00:55]} Be7 {[%emt 0:02:34]} 5. e3 {[%emt 0:01:35]} O-O {[%emt 0:02:45]} 6. Nge2 {[%emt 0:05:16]} c6 {[%emt 0:03:47]} 7. g3 {[%emt 0:00:00]} d5 {[%emt 0:03:42]} 8. d4 {[%emt 0:02:44]} exd4 {[%emt 0:12:29]} 9. Nxd4 {[%emt 0:03:59]} c5 {[%emt 0:03:51]} 10. Nf5 {[%emt 0:00:11]} d4 {[%emt 0:05:48]} 11. Nxe7+ {[%emt 0:01:02]} Qxe7 {[%emt 0:00:04]} 12. Nd5 {[%emt 0:00:38]} Qe5 {[%emt 0:20:44]} 13. Bg2 {[%emt 0:03:35]} 1/2-1/2

[Event "11th LCC FIDE Open 2019"]
[Site "London"]
[Date "2019.12.04"]
[Round "7.20"]
[White "Wu, Li"]
[Black "Eche, Sylvain"]
[Result "1-0"]
[ECO "A16"]
[WhiteElo "2293"]
[BlackElo "2054"]
[Annotator "NA"]
[PlyCount "47"]
[EventDate "2019.11.29"]
[EventType "swiss"]
[EventCountry "ENG"]
[SourceTitle "playchess.com"]
[Source "ChessBase"]
[SourceQuality "1"]
[TimeControl "40/5400+30:1800+30"]

1. Nf3 {[%emt 0:00:00]} Nf6 {[%emt 0:00:00]} 2. c4 {[%emt 0:00:00]} g6 {[%emt 0:00:11]} 3. Nc3 {[%emt 0:00:00]} d5 {[%emt 0:00:42]} 4. cxd5 {[%emt 0:00:01]} Nxd5 {[%emt 0:00:06]} 5. e4 {[%emt 0:00:05]} Nxc3 {[%emt 0:00:16]} 6. dxc3 {[%emt 0:00:17]} Qxd1+ {[%emt 0:04:44]} 7. Kxd1 {[%emt 0:00:04]} Bg7 {[%emt 0:03:55]} 8. Bf4 {[%emt 0:01:08]} c5 {[%emt 0:01:42]} 9. Kc2 {[%emt 0:01:41]} O-O {[%emt 0:03:04]} 10. a4 {[%emt 0:04:26]} b6 {[%emt 0:06:01]} 11. a5 {[%emt 0:11:58]} Bb7 {[%emt 0:02:18]} 12. Nd2 {[%emt 0:00:04]} Nd7 {[%emt 0:07:13]} 13. Bb5 {[%emt 0:08:02]} Nf6 {[%emt 0:08:01]} 14. a6 {[%emt 0:01:26]} Bxe4+ {[%emt 0:00:16]} 15. Nxe4 {[%emt 0:00:05]} Nxe4 {[%emt 0:00:06]} 16. Bc6 {[%emt 0:01:37]} Nxf2 {[%emt 0:05:06]} 17. Bxa8 {[%emt 0:02:32]} Nxh1 {[%emt 0:01:12]} 18. Bf3 {[%emt 0:00:21]} e5 {[%emt 0:04:55]} 19. Be3 {[%emt 0:00:13]} f5 {[%emt 0:01:19]} 20. Bd5+ {[%emt 0:01:02]} Kh8 {[%emt 0:00:05]} 21. Rxh1 {[%emt 0:00:06]} e4 {[%emt 0:00:56]} 22. Bf4 {[%emt 0:02:08]} Bf6 {[%emt 0:01:23]} 23. Bc7 {[%emt 0:03:57]} Bd8 {[%emt 0:01:17]} 24. Bd6 {[%emt 0:00:20]} 1-0

[Event "11th LCC FIDE Open 2019"]
[Site "London"]
[Date "2019.12.04"]
[Round "7.21"]
[White "Royal, Shreyas"]
[Black "Zapolskis, Antanas"]
[Result "1-0"]
[ECO "B00"]
[WhiteElo "1941"]
[BlackElo "2280"]
[Annotator "NA"]
[PlyCount "105"]
[EventDate "2019.11.29"]
[EventType "swiss"]
[EventCountry "ENG"]
[SourceTitle "playchess.com"]
[Source "ChessBase"]
[SourceQuality "1"]
[TimeControl "40/5400+30:1800+30"]

1. d4 {[%emt 0:00:00]} b5 {[%emt 0:00:00]} 2. e4 {[%emt 0:02:30]} a6 {[%emt 0:00:00]} 3. Bd3 {[%emt 0:02:59]} e6 {[%emt 0:00:13]} 4. Nf3 {[%emt 0:02:30]} Bb7 {[%emt 0:02:16]} 5. c3 {[%emt 0:03:01]} Nf6 {[%emt 0:02:06]} 6. Nbd2 {[%emt 0:01:37]} d6 {[%emt 0:04:10]} 7. a4 {[%emt 0:02:22]} bxa4 {[%emt 0:04:07]} 8. Qxa4+ {[%emt 0:02:54]} Nbd7 {[%emt 0:01:48]} 9. O-O {[%emt 0:02:34]} Be7 {[%emt 0:00:08]} 10. Qc2 {[%emt 0:02:31]} h6 {[%emt 0:11:03]} 11. Nb3 {[%emt 0:04:48]} Ra7 {[%emt 0:08:23]} 12. Na5 {[%emt 0:03:24]} Ba8 {[%emt 0:00:11]} 13. Qe2 {[%emt 0:00:39]} O-O {[%emt 0:14:13]} 14. Ne1 {[%emt 0:16:26]} c5 {[%emt 0:05:24]} 15. f3 {[%emt 0:02:09]} cxd4 {[%emt 0:01:23]} 16. cxd4 {[%emt 0:00:13]} Nb8 {[%emt 0:01:34]} 17. Be3 {[%emt 0:03:21]} d5 {[%emt 0:04:10]} 18. e5 {[%emt 0:00:05]} Ne8 {[%emt 0:01:46]} 19. f4 {[%emt 0:04:16]} f5 {[%emt 0:01:48]} 20. exf6 {[%emt 0:00:49]} Bxf6 {[%emt 0:06:02]} 21. Nf3 {[%emt 0:00:43]} Nd6 {[%emt 0:03:24]} 22. Bg6 {[%emt 0:02:09]} Nc6 {[%emt 0:01:07]} 23. Nb3 {[%emt 0:00:30]} Qb6 {[%emt 0:06:01]} 24. Nc5 {[%emt 0:00:51]} Nc4 {[%emt 0:00:24]} 25. Bf2 {[%emt 0:03:44]} Nd8 {[%emt 0:02:35]} 26. b3 {[%emt 0:01:33]} Na5 {[%emt 0:00:09]} 27. Qe1 {[%emt 0:02:47]} Nac6 {[%emt 0:01:19]} 28. Nxe6 {[%emt 0:05:07]} Re7 {[%emt 0:00:12]} 29. f5 {[%emt 0:00:00]} Nb4 {[%emt 0:00:08]} 30. Nxf8 {[%emt 0:01:50]} Rxe1 {[%emt 0:02:07]} 31. Raxe1 {[%emt 0:00:27]} Bc6 {[%emt 0:00:10]} 32. Nh7 {[%emt 0:03:03]} Bb5 {[%emt 0:05:12]} 33. Re3 {[%emt 0:04:55]} Nd3 {[%emt 0:01:42]} 34. Nxf6+ {[%emt 0:02:43]} gxf6 {[%emt 0:00:14]} 35. Bh4 {[%emt 0:00:25]} Nf4 {[%emt 0:00:45]} 36. Rfe1 {[%emt 0:00:19]} Nxg6 {[%emt 0:00:17]} 37. fxg6 {[%emt 0:00:04]} Kg7 {[%emt 0:00:06]} 38. Re7+ {[%emt 0:04:10]} Kxg6 {[%emt 0:00:17]} 39. Bf2 {[%emt 0:00:08]} Nf7 {[%emt 0:09:14]} 40. Nh4+ {[%emt 0:00:14]} Kg7 {[%emt 0:00:07]} 41. Nf5+ {[%emt 0:30:08]} Kf8 {[%emt 0:30:14]} 42. R7e6 {[%emt 0:02:48]} Qd8 {[%emt 0:00:00]} 43. Bh4 {[%emt 0:00:00]} Ng5 {[%emt 0:00:00]} 44. Bxg5 {[%emt 0:00:00]} hxg5 {[%emt 0:00:00]} 45. Rd6 {[%emt 0:00:00]} Qa5 {[%emt 0:00:00]} 46. Rxf6+ {[%emt 0:00:00]} Kg8 {[%emt 0:00:00]} 47. Re7 {[%emt 0:00:00]} Qa1+ {[%emt 0:00:00]} 48. Kf2 {[%emt 0:00:00]} Qf1+ {[%emt 0:00:00]} 49. Kg3 {[%emt 0:00:00]} Qf4+ {[%emt 0:00:00]} 50. Kh3 {[%emt 0:00:00]} g4+ {[%emt 0:00:00]} 51. Kh4 {[%emt 0:00:00]} g3+ {[%emt 0:00:00]} 52. Kh3 {[%emt 0:00:00]} gxh2 {[%emt 0:00:00]} 53. Rg7+ {[%emt 0:00:00]} 1-0

[Event "11th LCC FIDE Open 2019"]
[Site "London"]
[Date "2019.12.04"]
[Round "7.22"]
[White "Zujev, Oleg"]
[Black "Sedykh, Mikhail"]
[Result "1-0"]
[ECO "D36"]
[WhiteElo "2316"]
[BlackElo "2134"]
[Annotator "NA"]
[PlyCount "75"]
[EventDate "2019.11.29"]
[EventType "swiss"]
[EventCountry "ENG"]
[SourceTitle "playchess.com"]
[Source "ChessBase"]
[SourceQuality "1"]
[TimeControl "40/5400+30:1800+30"]

1. d4 {[%emt 0:00:00]} d5 {[%emt 0:02:57]} 2. c4 {[%emt 0:00:00]} e6 {[%emt 0:00:05]} 3. Nc3 {[%emt 0:00:00]} Nf6 {[%emt 0:00:11]} 4. cxd5 {[%emt 0:00:18]} exd5 {[%emt 0:00:05]} 5. Bg5 {[%emt 0:00:06]} Be7 {[%emt 0:00:10]} 6. e3 {[%emt 0:00:08]} c6 {[%emt 0:00:12]} 7. Bd3 {[%emt 0:00:15]} Nbd7 {[%emt 0:00:11]} 8. Qc2 {[%emt 0:00:17]} O-O {[%emt 0:00:23]} 9. Nf3 {[%emt 0:00:10]} Re8 {[%emt 0:00:05]} 10. O-O {[%emt 0:00:06]} Nf8 {[%emt 0:00:05]} 11. h3 {[%emt 0:00:09]} Ne4 {[%emt 0:00:08]} 12. Bf4 {[%emt 0:02:13]} Ng5 {[%emt 0:01:08]} 13. Bxg5 {[%emt 0:03:47]} Bxg5 {[%emt 0:00:08]} 14. b4 {[%emt 0:00:29]} a6 {[%emt 0:14:19]} 15. a4 {[%emt 0:05:33]} Ng6 {[%emt 0:17:16]} 16. Bf5 {[%emt 0:03:17]} Qf6 {[%emt 0:14:15]} 17. Bxc8 {[%emt 0:01:25]} Raxc8 {[%emt 0:00:55]} 18. b5 {[%emt 0:12:47]} cxb5 {[%emt 0:19:46]} 19. Qb2 {[%emt 0:24:33]} bxa4 {[%emt 0:09:37]} 20. Nxd5 {[%emt 0:05:34]} Qf5 {[%emt 0:00:08]} 21. Qxb7 {[%emt 0:04:50]} Rb8 {[%emt 0:03:28]} 22. Qc6 {[%emt 0:00:42]} Rbc8 {[%emt 0:05:00]} 23. Nc7 {[%emt 0:03:48]} Re7 {[%emt 0:08:26]} 24. Qd5 {[%emt 0:02:08]} Qd3 {[%emt 0:00:02]} 25. Rfd1 {[%emt 0:02:35]} Qb3 {[%emt 0:00:07]} 26. Rab1 {[%emt 0:00:49]} Qa3 {[%emt 0:00:36]} 27. Nxa6 {[%emt 0:03:12]} Bxe3 {[%emt 0:00:12]} 28. fxe3 {[%emt 0:04:33]} Qxe3+ {[%emt 0:00:02]} 29. Kh1 {[%emt 0:00:07]} Nf4 {[%emt 0:00:44]} 30. Qf5 {[%emt 0:00:29]} Re6 {[%emt 0:01:53]} 31. Re1 {[%emt 0:01:06]} Ne2 {[%emt 0:00:13]} 32. Kh2 {[%emt 0:10:36]} Qf2 {[%emt 0:01:22]} 33. Rxe2 {[%emt 0:03:57]} Qxe2 {[%emt 0:00:12]} 34. Ng5 {[%emt 0:01:09]} Rec6 {[%emt 0:01:42]} 35. Qxh7+ {[%emt 0:01:17]} Kf8 {[%emt 0:00:00]} 36. Rb7 {[%emt 0:00:17]} R6c7 {[%emt 0:01:18]} 37. Nxc7 {[%emt 0:00:24]} Qd2 {[%emt 0:00:38]} 38. Nd5 {[%emt 0:00:25]} 1-0

[Event "11th LCC FIDE Open 2019"]
[Site "London"]
[Date "2019.12.04"]
[Round "7.23"]
[White "Cox, John J"]
[Black "Makkar, Rajat"]
[Result "1-0"]
[ECO "A34"]
[WhiteElo "2306"]
[BlackElo "2125"]
[Annotator "NA"]
[PlyCount "41"]
[EventDate "2019.11.29"]
[EventType "swiss"]
[EventCountry "ENG"]
[SourceTitle "playchess.com"]
[Source "ChessBase"]
[SourceQuality "1"]
[TimeControl "40/5400+30:1800+30"]

1. c4 {[%emt 0:03:01]} c5 {[%emt 0:00:00]} 2. g3 {[%emt 0:00:09]} Nf6 {[%emt 0:00:28]} 3. Bg2 {[%emt 0:00:05]} d5 {[%emt 0:00:20]} 4. cxd5 {[%emt 0:00:05]} Nxd5 {[%emt 0:00:08]} 5. Nc3 {[%emt 0:00:05]} Nc7 {[%emt 0:00:14]} 6. Nf3 {[%emt 0:02:55]} Nc6 {[%emt 0:00:30]} 7. a3 {[%emt 0:02:59]} e5 {[%emt 0:01:04]} 8. b4 {[%emt 0:06:12]} cxb4 {[%emt 0:11:50]} 9. axb4 {[%emt 0:00:12]} f6 {[%emt 0:02:13]} 10. b5 {[%emt 0:11:13]} Nd4 {[%emt 0:01:21]} 11. b6 {[%emt 0:01:36]} axb6 {[%emt 0:02:17]} 12. Rxa8 {[%emt 0:00:13]} Nxa8 {[%emt 0:01:34]} 13. Nxd4 {[%emt 0:10:12]} Qxd4 {[%emt 0:02:02]} 14. Qc2 {[%emt 0:04:17]} Bc5 {[%emt 0:02:36]} 15. O-O {[%emt 0:00:50]} O-O {[%emt 0:04:19]} 16. Qa2+ {[%emt 0:04:46]} Kh8 {[%emt 0:03:16]} 17. Qxa8 {[%emt 0:00:32]} Bb4 {[%emt 0:02:29]} 18. Qa2 {[%emt 0:04:01]} Bxc3 {[%emt 0:01:57]} 19. dxc3 {[%emt 0:00:17]} Qxc3 {[%emt 0:00:18]} 20. Be3 {[%emt 0:03:13]} b5 {[%emt 0:03:15]} 21. Rc1 {[%emt 0:01:45]} 1-0

[Event "11th LCC FIDE Open 2019"]
[Site "London"]
[Date "2019.12.04"]
[Round "7.24"]
[White "Pasztor, Balazs"]
[Black "Berry, Neil"]
[Result "1/2-1/2"]
[ECO "C78"]
[WhiteElo "2166"]
[BlackElo "2250"]
[Annotator "NA"]
[PlyCount "40"]
[EventDate "2019.11.29"]
[EventType "swiss"]
[EventCountry "ENG"]
[SourceTitle "playchess.com"]
[Source "ChessBase"]
[SourceQuality "1"]
[TimeControl "40/5400+30:1800+30"]

1. e4 {[%emt 0:13:02]} e5 {[%emt 0:05:11]} 2. Nf3 {[%emt 0:00:08]} Nc6 {[%emt 0:00:13]} 3. Bb5 {[%emt 0:00:17]} a6 {[%emt 0:01:44]} 4. Ba4 {[%emt 0:00:07]} Nf6 {[%emt 0:00:09]} 5. Nc3 {[%emt 0:00:42]} Bd6 {[%emt 0:03:28]} 6. O-O {[%emt 0:06:07]} O-O {[%emt 0:01:57]} 7. a3 {[%emt 0:06:28]} Re8 {[%emt 0:04:42]} 8. d3 {[%emt 0:03:39]} h6 {[%emt 0:01:05]} 9. Re1 {[%emt 0:06:59]} Bc5 {[%emt 0:05:07]} 10. Nd5 {[%emt 0:18:43]} d6 {[%emt 0:25:45]} 11. c3 {[%emt 0:06:36]} Ba7 {[%emt 0:05:28]} 12. Be3 {[%emt 0:07:38]} Bd7 {[%emt 0:12:40]} 13. Bb3 {[%emt 0:09:57]} Nxd5 {[%emt 0:01:17]} 14. Bxd5 {[%emt 0:00:26]} Bxe3 {[%emt 0:01:25]} 15. Rxe3 {[%emt 0:01:54]} Be6 {[%emt 0:00:43]} 16. Qb3 {[%emt 0:04:12]} Rb8 {[%emt 0:01:04]} 17. Bxe6 {[%emt 0:02:02]} Rxe6 {[%emt 0:00:23]} 18. d4 {[%emt 0:01:58]} Re8 {[%emt 0:00:52]} 19. dxe5 {[%emt 0:02:17]} Nxe5 {[%emt 0:00:50]} 20. Nxe5 {[%emt 0:00:38]} Rxe5 {[%emt 0:00:20]} 1/2-1/2